fUSD/lending_fUSD_20250402
["ID","MTS","AMOUNT","RATE_DAILY","PERIOD"]
[357037229,1743606648576,-500.0,0.00054794,120]
[357037230,1743606648585,-316.06395189,0.00054794,100]
[357037231,1743606648595,-576.95,0.00054794,120]
[357037232,1743606648605,-500.0,0.00054794,120]
[357037233,1743606648614,-500.0,0.00054794,120]
[357037234,1743606648626,-1794.13,0.00054794,2]
[357037235,1743606648636,-500.0,0.00054794,120]
[357037236,1743606648645,-3605.78,0.00054794,120]
[357037237,1743606648655,-799.69,0.00054794,2]
[357037238,1743606648664,-500.0,0.00054794,120]
[357037239,1743606648674,-500.0,0.00054794,120]
[357037240,1743606648683,-500.0,0.00054794,2]
[357037241,1743606648692,-499.91409382,0.00054794,2]
[357037242,1743606648702,-156.98377683,0.00054795,120]
[357037243,1743606648711,-150.0,0.00054817,30]
[357037244,1743606648721,-337.51619343,0.00054817,30]
[357037245,1743606648731,-213.2909,0.0005489,2]
[357037246,1743606648740,-223.0,0.000549,120]
[357037247,1743606648750,-615.44463148,0.000549,26]
[357037248,1743606648759,-283.04848261,0.00054959,120]
[357037249,1743606648768,-500.0,0.00054973,15]
[357037250,1743606648777,-500.0,0.00054973,14]
[357037251,1743606648786,-8404.3214972,0.00054979,4]
[357037252,1743606648795,-40340.7431866,0.0005498,4]
[357037253,1743606648804,-4114.68716436,0.0005498,4]
[357037254,1743606648814,-10000.0,0.00054988,120]
[357037255,1743606648823,-500.0,0.00054989,120]
[357037256,1743606648833,-500.0,0.00054989,120]
[357037257,1743606648842,-500.0,0.00054989,120]
[357037258,1743606648852,-500.0,0.00054989,120]
[357037259,1743606648862,-500.0,0.00054989,120]
[357037260,1743606648874,-500.0,0.00054989,120]
[357037261,1743606648883,-500.0,0.00054989,120]
[357037262,1743606648893,-500.0,0.00054989,120]
[357037263,1743606648903,-500.0,0.00054989,120]
[357037264,1743606648913,-500.0,0.00054989,120]
[357037265,1743606648924,-500.0,0.00054989,120]
[357037266,1743606648934,-500.0,0.00054989,120]
[357037267,1743606648944,-385.14975571,0.00054989,30]
[357037268,1743606648954,-560.19473225,0.00054989,120]
[357037269,1743606648964,-605.89363614,0.00054989,120]
[357037270,1743606648974,-500.0,0.00054989,120]
[357037271,1743606648984,-523.5174004,0.00054989,120]
[357037272,1743606648995,-500.0,0.00054989,120]
[357037273,1743606649006,-341.76102589,0.00054989,120]
[357037274,1743606649015,-500.0,0.00054989,120]
[357037275,1743606649025,-500.0,0.00054989,120]
[357037276,1743606649035,-500.0,0.00054989,120]
[357037277,1743606649044,-500.0,0.00054989,10]
[357037278,1743606649054,-500.0,0.00054989,120]
[357037279,1743606649064,-500.0,0.00054989,120]
[357037280,1743606649073,-500.0,0.00054989,120]
[357037281,1743606649083,-529.30959555,0.00054989,120]
[357037282,1743606649093,-611.02900871,0.00054989,120]
[357037283,1743606649102,-500.0,0.00054989,120]
[357037284,1743606649112,-150.0,0.00054989,120]
[357037285,1743606649126,-500.0,0.00054989,120]
[357037286,1743606649135,-540.72,0.00054989,30]
[357037287,1743606649145,-487.81783317,0.00054989,120]
[357037288,1743606649155,-507.33788092,0.00054989,120]
[357037289,1743606649165,-520.26916549,0.00054989,120]
[357037290,1743606649176,-513.44408055,0.00054989,120]
[357037291,1743606649186,-284.84872273,0.00054989,120]
[357037292,1743606649196,-539.65616015,0.00054989,120]
[357037293,1743606649206,-688.14,0.00054989,120]
[357037294,1743606649216,-500.0,0.00054989,120]
[357037295,1743606649226,-500.0,0.00054989,120]
[357037296,1743606649235,-500.0,0.00054989,120]
[357037297,1743606649245,-500.0,0.00054989,120]
[357037298,1743606649255,-500.0,0.00054989,120]
[357037299,1743606649264,-499.14036001,0.00054989,120]
[357037300,1743606649274,-199.02509821,0.00054989,120]
[357037301,1743606649284,-500.0,0.00054989,120]
[357037302,1743606649294,-500.0,0.00054989,120]
[357037303,1743606649303,-500.0,0.00054989,120]
[357037304,1743606649313,-500.0,0.00054989,120]
[357037305,1743606649322,-500.0,0.00054989,120]
[357037306,1743606649332,-364.05575152,0.00054989,120]
[357037307,1743606649342,-500.0,0.00054989,120]
[357037308,1743606649351,-500.0,0.00054989,120]
[357037309,1743606649361,-500.0,0.00054989,120]
[357037310,1743606649372,-500.0,0.00054989,120]
[357037311,1743606649382,-500.0,0.00054989,120]
[357037312,1743606649393,-500.0,0.00054989,120]
[357037313,1743606649403,-213.91,0.00054989,120]
[357037314,1743606649413,-957.45,0.00054989,120]
[357037315,1743606649423,-505.42691173,0.00054989,7]
[357037316,1743606649432,-244.37687647,0.00054989,120]
[357037317,1743606649442,-500.0,0.00054989,120]
[357037318,1743606649455,-500.0,0.00054989,120]
[357037319,1743606649465,-500.0,0.00054989,120]
[357037320,1743606649475,-524.6824601,0.00054989,120]
[357037321,1743606649485,-500.0,0.00054989,30]
[357037322,1743606649494,-500.0,0.00054989,120]
[357037323,1743606649503,-500.0,0.00054989,120]
[357037324,1743606649513,-500.0,0.00054989,120]
[357037325,1743606649522,-621.05,0.00054989,120]
[357037326,1743606649532,-500.0,0.00054989,2]
[357037327,1743606649543,-500.0,0.00054989,120]
[357037328,1743606649553,-500.0,0.00054989,120]
[357037329,1743606649563,-496.49582602,0.00054989,2]
[357037330,1743606649572,-1597.22,0.00054989,120]
[357037331,1743606649582,-500.0,0.00054989,2]
[357037332,1743606649594,-500.0,0.00054989,120]
[357037333,1743606649605,-500.0,0.00054989,120]
[357037334,1743606649615,-576.87,0.00054989,120]
[357037335,1743606649627,-500.0,0.00054989,120]
[357037336,1743606649637,-500.0,0.00054989,120]
[357037337,1743606649647,-6857.8119406,0.0005499,4]
[357037338,1743606649657,-151.42,0.0005499,120]
[357037339,1743606649666,-151.42,0.0005499,120]
[357037340,1743606649676,-743.0,0.00055,25]
[357037341,1743606649686,-251906.34159304,0.00055,120]
[357037342,1743606649700,-43054.93420623,0.00055,120]
[357037343,1743606649785,-19.29127215,0.00055,120]
[357037344,1743606649800,-64556.22954228,0.00055,120]
[357037350,1743606690519,303.78301742,0.00015,5]
[357037357,1743607511132,-179.8895,0.00015,2]
[357037358,1743607520391,-224.38854597,0.00015,2]
[357037359,1743607636123,-5870.49117881,0.00015,2]
[357037360,1743607680699,743.61980459,0.0001,2]
[357037388,1743607743680,-200.0,0.00014924,2]
[357037389,1743607745197,-826.373382,0.00014924,2]
[357037390,1743607745218,-300.0,0.00014999,2]
[357037391,1743607745242,-93132.272778,0.00015,2]
[357037392,1743607746148,-46101.35698,0.00015,2]
[357037393,1743607747218,-34182.40686,0.00015,2]
[357037394,1743607748154,-2058.31965379,0.00015,2]
[357037395,1743607748255,-184.39,0.00015,2]
[357037399,1743607752180,-94313.94836494,0.00015,2]
[357037400,1743607753191,-16212.56464462,0.00015,2]
[357037401,1743607753572,-152.91151117,0.00015,2]
[357037402,1743607758268,-302336.9482,0.00015,2]
[357037408,1743607761127,-48823.40204,0.00015,2]
[357037409,1743607762111,-14087.68690393,0.00015,2]
[357037410,1743607764174,-58071.98348,0.00015,2]
[357037411,1743607791892,-9696.0,0.00015,2]
[357037412,1743607802602,-184.13930065,0.00014999,2]
[357037413,1743607807165,-152.35,0.0001499,2]
[357037414,1743607817446,-115.86069935,0.00014999,2]
[357037415,1743607817480,-987.13930065,0.00015,2]
[357037426,1743607832426,-8500.0,0.00015,2]
[357037427,1743607832438,-756.79311258,0.00015,2]
[357037428,1743607832449,-3915.0964487,0.00015,2]
[357037429,1743607832469,-415.0,0.00015,2]
[357037430,1743607832487,-855133.71568439,0.00015,2]
[357037431,1743607832499,-387.64516842,0.00015,2]
[357037432,1743607832510,-5702.74,0.00015,2]
[357037433,1743607832522,-1904.32436627,0.00015,2]
[357037434,1743607832884,-1679.89477662,0.00015,2]
[357037464,1743607838426,-51462.70289769,0.00015,2]
[357037465,1743607838439,-4834.14039483,0.00015,2]
[357037466,1743607838452,-1630.70766583,0.00015,2]
[357037467,1743607838464,-431.63,0.00015,2]
[357037468,1743607838760,-8636.3082912,0.00015,2]
[357037469,1743607838771,-2105.37358357,0.00015,2]
[357037482,1743607840770,-774.44334946,0.00015,2]
[357037483,1743607840865,-0.00833314,0.00015,2]
[357037484,1743607841008,-43050.15865651,0.00015,2]
[357037485,1743607841021,-654.1965593,0.00015,2]
[357037516,1743607843663,-758.18755619,0.00015,2]
[357037517,1743607843675,-95356.04337152,0.00015,2]
[357037518,1743607843686,-256.7355,0.00015,2]
[357037519,1743607843698,-8324.80264031,0.00015,2]
[357037520,1743607843725,-36502.05458454,0.00015,2]
[357037532,1743607846502,-30643.72508803,0.00015,2]
[357037533,1743607846514,-32783.59361114,0.00015,2]
[357037534,1743607846526,-1764.5058898,0.00015,2]
[357037535,1743607846537,-10047.84317745,0.00015,2]
[357037536,1743607846548,-2961.53035587,0.00015,2]
[357037537,1743607846560,-1505.81997889,0.00015,2]
[357037538,1743607846572,-3522.39415,0.00015,2]
[357037539,1743607846584,-194658.43344,0.00015,2]
[357037540,1743607846597,-2722.53841153,0.00015,2]
[357037541,1743607846664,-438.45601436,0.00015,2]
[357037542,1743607846841,-21680.77461753,0.00015,2]
[357037551,1743607860398,-479.983505,0.00014925,2]
[357037552,1743607860437,-499520.016495,0.00015,2]
[357037553,1743607867695,-150.0,0.000149,2]
[357037554,1743607868978,300.0,0.000149,5]
[357037555,1743607892882,-124.0170456,0.000149,2]
[357037556,1743607892911,-92.76226162,0.00014999,2]
[357037557,1743607895471,-407.23773838,0.00014999,2]
[357037558,1743607895512,-500.0,0.00014999,2]
[357037559,1743607895548,-500.0,0.00014999,2]
[357037560,1743607895584,-500.0,0.00014999,2]
[357037561,1743607895620,-500.0,0.00014999,2]
[357037562,1743607895656,-500.0,0.00014999,2]
[357037563,1743607895691,-502.10059744,0.00014999,2]
[357037564,1743607895737,-196590.66166418,0.00015,2]
[357037565,1743607911307,-65000.0,0.00015,2]
[357037566,1743607922269,-150.0,0.00014999,2]
[357037567,1743607943978,-150.0,0.00014999,2]
[357037568,1743607944012,-499850.0,0.00015,2]
[357037569,1743607944253,816.16809183,0.00034728,30]
[357037570,1743607988626,2782.87886281,7.945e-05,2]
[357037571,1743607988647,2244.28025119,7.945e-05,2]
[357037572,1743607990989,-151.6824,0.00014999,2]
[357037573,1743608015321,-629.74210791,0.00014999,2]
[357037574,1743608015351,-150.0,0.00014999,2]
[357037575,1743608015383,-79220.25789209,0.00015,2]
[357037576,1743608028946,-1905.0,0.00015,2]
[357037577,1743608035510,-343.01282385,0.0001901,7]
[357037578,1743608035537,-99656.98717615,0.0002361,7]
[357037579,1743608050185,-350.0,0.0001575,12]
[357037580,1743608050214,-350.0,0.000165,12]
[357037581,1743608050242,-13613.71202947,0.0002361,7]
[357037582,1743608050268,-235.35520217,0.00024799,10]
[357037583,1743608224461,217.15233878,0.00034724,30]
[357037584,1743608227176,621.78829552,0.00034724,30]
[357037592,1743608411983,16259.62,0.00029305,120]
[357037593,1743608453463,-2064.97308005,0.00015,2]
[357037594,1743608460543,-150.0,0.000165,2]
[357037595,1743608460566,-150.0,0.000165,2]
[357037596,1743608460588,-150.0,0.000165,2]
[357037597,1743608460610,-188.16,0.00016712,2]
[357037598,1743608460631,-337.51800792,0.00019,2]
[357037599,1743608460658,-554.51876269,0.0002,4]
[357037600,1743608466015,-521.95733703,0.00021,2]
[357037601,1743608466037,-2318.33486882,0.00021,2]
[357037602,1743608466059,-231.33599977,0.0002211,2]
[357037603,1743608466081,-389.1222886,0.00023999,2]
[357037604,1743608466103,-300.0,0.00023999,2]
[357037605,1743608466124,-2123.45688955,0.00024,2]
[357037606,1743608466151,-625.1,0.00024,2]
[357037607,1743608466174,-1519.29,0.00024,2]
[357037608,1743608466196,-3376.23276557,0.00024,2]
[357037609,1743608670582,2000.0,0.00030835,120]
[357037610,1743608747099,-173.47978136,0.00023899,2]
[357037611,1743608747121,-1630.90419425,0.0002399,2]
[357037612,1743608754101,-1003.92732158,0.0002399,2]
[357037613,1743608824278,151.0,0.00034695,30]
[357037614,1743608827018,599.60298507,0.00034695,30]
[357037615,1743608828159,-8744.82951765,0.0002399,2]
[357037616,1743608828187,-150.0,0.00023999,2]
[357037617,1743608828216,-153.0,0.00023999,2]
[357037618,1743608828244,-338.97723443,0.00024,2]
[357037619,1743608828274,-150.99,0.00024,2]
[357037620,1743608828302,-150.99,0.00024,2]
[357037621,1743608828331,-8833.53,0.00024,2]
[357037622,1743608828363,-257.31132463,0.00024,2]
[357037623,1743608835283,-151.0,0.00023986,2]
[357037624,1743608835310,-742.7216084,0.00024,2]
[357037625,1743608840582,-2633.54706697,0.00024,2]
[357037626,1743608840603,-6562.74728516,0.00024,2]
[357037627,1743608843171,-336.8096946,0.00024,2]
[357037628,1743608849096,-5780.01813638,0.00024,2]
[357037634,1743608962093,-200.0,0.000239,2]
[357037635,1743608962115,-153.79694517,0.00024,2]
[357037636,1743608962139,-28.52573123,0.00024534,2]
[357037637,1743608967124,-128.06126877,0.00024534,2]
[357037638,1743608967151,-1619.83331323,0.00024537,4]
[357037639,1743608967182,-380.16668677,0.00024537,4]
[357037640,1743608967205,-167.42,0.00024927,2]
[357037641,1743608967228,-136.06132303,0.00025082,2]
[357037642,1743608972120,-62.51432585,0.00025082,2]
[357037643,1743608972145,-1640.79681974,0.00026,2]
[357037644,1743608974134,-177.5912488,0.00026,2]
[357037656,1743609031732,-2525.31317791,0.00026,2]
[357037657,1743609031742,-150.0,0.00026195,2]
[357037658,1743609031751,-350.0,0.00026389,12]
[357037659,1743609031761,-150.0,0.00026648,2]
[357037660,1743609031771,-154.71,0.00026849,2]
[357037661,1743609031780,-272.44,0.00026849,2]
[357037662,1743609031789,-250.0,0.00027,2]
[357037663,1743609031799,-3760.11344713,0.00027,10]
[357037664,1743609031810,-3880.02804478,0.00027,10]
[357037665,1743609031822,-28547.84850809,0.00027,10]
[357037666,1743609031832,-188.703,0.00028474,19]
[357037667,1743609031841,-417.717,0.00028474,19]
[357037668,1743609031851,-150.0,0.000286,2]
[357037669,1743609031860,-185.45099,0.0002877,42]
[357037670,1743609031870,-185.45099,0.0002882,42]
[357037671,1743609031880,-185.45099,0.0002898,43]
[357037672,1743609031889,-300.0,0.00029,2]
[357037673,1743609031899,-895.46,0.00029129,2]
[357037674,1743609031908,-185.45099,0.0002914,43]
[357037675,1743609031918,-1000.0,0.00029278,2]
[357037676,1743609031928,-185.45099,0.0002929,43]
[357037677,1743609031938,-185.45099,0.0002944,44]
[357037678,1743609031953,-11197.23260889,0.00029525,2]
[357037679,1743609031962,-22911.48,0.00029526,2]
[357037680,1743609031972,-557.5,0.00029842,2]
[357037681,1743609031982,-158.88,0.00029896,2]
[357037682,1743609031991,-150.0,0.00029968,7]
[357037683,1743609032000,-200.0,0.0003027,2]
[357037684,1743609032010,-174.86,0.0003046,2]
[357037685,1743609032020,-250.0,0.00030927,2]
[357037686,1743609032029,-350.0,0.00031,2]
[357037687,1743609032039,-200.0,0.00031012,2]
[357037689,1743609032048,-2000.0,0.00031023,2]
[357037691,1743609032058,-8563.6,0.00031057,2]
[357037692,1743609032067,-895.46,0.00031393,2]
[357037695,1743609032076,-151.026113,0.0003237,2]
[357037696,1743609032086,-272.44,0.00032646,2]
[357037698,1743609032096,-1000.0,0.00032938,2]
[357037701,1743609032105,-400.0,0.00033,2]
[357037703,1743609032114,-153.29488079,0.0003345,5]
[357037705,1743609032124,-151.026113,0.00033458,3]
[357037707,1743609032134,-506.41551795,0.000336,5]
[357037708,1743609032143,-500.0,0.000336,5]
[357037710,1743609032152,-895.46,0.00033657,2]
[357037712,1743609032162,-5040.23710954,0.00034595,2]
[357037714,1743609032171,-775.13846592,0.00034595,7]
[357037716,1743609032180,-163.12951868,0.00034628,2]
[357037718,1743609032196,-151.39,0.00034671,2]
[357037720,1743609032207,-4356.37,0.00034681,2]
[357037722,1743609032216,-19588.14634499,0.00034681,2]
[357037724,1743609032225,-22704.57286314,0.00034681,2]
[357037726,1743609032238,-2575.55783947,0.00034681,2]
[357037730,1743609032248,-10618.52706806,0.00034681,2]
[357037734,1743609032260,-9014.7789364,0.00034681,2]
[357037738,1743609032270,-570.87510817,0.00034681,2]
[357037741,1743609032281,-1829.96023912,0.00034681,2]
[357037743,1743609032290,-3231.08433351,0.00034681,2]
[357037745,1743609032300,-153.85118867,0.00034681,2]
[357037747,1743609032312,-174.72516184,0.00034681,2]
[357037749,1743609032322,-7059.32345056,0.00034681,2]
[357037751,1743609032332,-550.0,0.00034681,2]
[357037753,1743609032343,-746.76939587,0.00034681,2]
[357037756,1743609032355,-714.09064808,0.00034681,2]
[357037757,1743609032364,-1004.27789074,0.00034681,2]
[357037759,1743609032374,-598.15789897,0.00034681,2]
[357037762,1743609032386,-1199.03640389,0.00034681,2]
[357037764,1743609032397,-3047.13452531,0.00034681,2]
[357037767,1743609032421,-5820.45354345,0.00034681,2]
[357037769,1743609032430,-800.09409937,0.00034681,2]
[357037771,1743609032443,-4916.03540447,0.00034681,2]
[357037773,1743609032455,-64984.4676685,0.00034681,2]
[357037778,1743609032492,-556.75572888,0.00034681,2]
[357037790,1743609032594,-158.2022803,0.00034681,2]
[357037793,1743609032610,-949.94196682,0.00034681,2]
[357037795,1743609032621,-550.05803318,0.00034681,2]
[357037863,1743609038179,-349.03655998,0.000346,3]
[357037865,1743609038195,-647.10494213,0.000346,3]
[357037866,1743609038208,-1142.85849789,0.000346,3]
[357037868,1743609038218,-188.39409234,0.0003468,7]
[357037870,1743609038227,-29096.33906114,0.00034681,2]
[357037871,1743609038259,-697.99056013,0.00034681,2]
[357037873,1743609038271,-8372.77221343,0.00034681,2]
[357037874,1743609038330,-200.48710856,0.00034681,2]
[357037875,1743609038345,-892.25232706,0.00034681,2]
[357037876,1743609038370,-774.93463317,0.00034681,2]
[357037877,1743609038381,-297.76034282,0.00034681,2]
[357037878,1743609038392,-1146.33374655,0.00034681,2]
[357037879,1743609038404,-5223.60000056,0.00034681,2]
[357037880,1743609038416,-1774.1,0.00034681,2]
[357037881,1743609038427,-12206.6,0.00034681,2]
[357037882,1743609038438,-23250.50642576,0.00034681,2]
[357037883,1743609038454,-14895.73975306,0.00034681,2]
[357037884,1743609038464,-228.18355371,0.00034681,2]
[357037885,1743609038474,-173.17264855,0.00034681,2]
[357037886,1743609038484,-6000.0,0.00034681,2]
[357037887,1743609038494,-374.16802104,0.00034681,2]
[357037888,1743609038505,-1465.62117248,0.00034681,2]
[357037889,1743609038515,-1029.99856364,0.00034681,2]
[357037890,1743609038525,-4834.18558286,0.00034681,2]
[357037891,1743609038534,-122218.29509539,0.00034681,2]
[357037892,1743609038544,-448.63017056,0.00034681,2]
[357037893,1743609038554,-1064.09668241,0.00034681,2]
[357037894,1743609038564,-21211.29355541,0.00034681,2]
[357037895,1743609038574,-2500.0,0.00034681,2]
[357037896,1743609038583,-577.6744714,0.00034681,2]
[357037897,1743609038593,-341.2477042,0.00034681,2]
[357037898,1743609038602,-900.81513789,0.00034681,2]
[357037899,1743609038611,-10766.52006298,0.00034681,2]
[357037900,1743609038621,-480.24075655,0.00034681,2]
[357037901,1743609038630,-169.76166596,0.00034681,2]
[357037902,1743609038639,-1581.63988048,0.00034681,2]
[357037904,1743609038649,-55434.97841076,0.00034681,2]
[357037906,1743609038658,-49846.42840039,0.00034681,2]
[357037908,1743609038667,-546.04900076,0.00034681,2]
[357037910,1743609038677,-4993.1353957,0.00034681,2]
[357037912,1743609038686,-3000.0,0.00034681,2]
[357037913,1743609038700,-1008.39846306,0.00034681,2]
[357037915,1743609038710,-363.58510474,0.00034681,2]
[357037917,1743609038719,-2198.16340673,0.00034681,2]
[357037919,1743609038729,-282.75032347,0.00034681,2]
[357037921,1743609038738,-747.73397103,0.00034681,2]
[357037923,1743609038748,-14727.9665166,0.00034681,2]
[357037925,1743609038758,-1830.52568432,0.00034681,2]
[357037927,1743609038767,-1113.85692446,0.00034681,2]
[357037929,1743609038777,-219.55812226,0.00034681,2]
[357037932,1743609038786,-14016.62970539,0.00034681,2]
[357037934,1743609038796,-10163.33905741,0.00034681,2]
[357037936,1743609038805,-8115.49760594,0.00034681,2]
[357037938,1743609038815,-1699.78786418,0.00034681,2]
[357037940,1743609038824,-1425.68503621,0.00034681,2]
[357037942,1743609038834,-5376.69774694,0.00034681,2]
[357037944,1743609038844,-202.02337148,0.00034681,2]
[357037946,1743609038853,-281.6475134,0.00034681,2]
[357037948,1743609038863,-5662.4988337,0.00034681,2]
[357037950,1743609038872,-748.96889339,0.00034681,2]
[357037952,1743609038882,-1009.59897845,0.00034681,2]
[357037954,1743609038891,-1102.56924828,0.00034681,2]
[357037956,1743609038900,-162.91,0.00034681,2]
[357037958,1743609038910,-161.10722204,0.00034681,2]
[357037959,1743609038919,-2165.00385667,0.00034681,2]
[357037961,1743609038928,-150.0,0.00034681,2]
[357037963,1743609038938,-304.91833514,0.00034681,2]
[357037965,1743609038954,-160.21,0.00034685,3]
[357037967,1743609038963,-152.94080743,0.000347,5]
[357037969,1743609038973,-500.0,0.000347,2]
[357037971,1743609038982,-319.05841768,0.000347,5]
[357037973,1743609038992,-181.34053378,0.000347,5]
[357037975,1743609039002,-482.26619861,0.000347,5]
[357037977,1743609039012,-500.0,0.000347,5]
[357037979,1743609039021,-163.95839373,0.000347,5]
[357037981,1743609039030,-500.0,0.000347,2]
[357037983,1743609039040,-500.0,0.00034713,5]
[357037985,1743609039049,-150.0,0.00034728,2]
[357037987,1743609039058,-200.0,0.00034728,2]
[357037989,1743609039068,-3445.83364792,0.000348,2]
[357037991,1743609039078,-700.0,0.000349,12]
[357037993,1743609039088,-400.77491144,0.00035,120]
[357037995,1743609039098,-450.0,0.00035,2]
[357037997,1743609039107,-200.0,0.00035075,2]
[357037999,1743609039117,-200.0,0.00035426,2]
[357038001,1743609039127,-151.3,0.00035616,2]
[357038003,1743609039136,-200.0,0.0003578,2]
[357038005,1743609039146,-5554.0,0.000359,5]
[357038007,1743609039155,-895.46,0.00035921,2]
[357038008,1743609039164,-200.0,0.00036138,2]
[357038010,1743609039174,-5040.23710951,0.00036296,2]
[357038012,1743609039183,-1000.0,0.00036598,2]
[357038014,1743609039195,-500.0,0.00037,2]
[357038016,1743609039205,-166.34,0.00037,2]
[357038018,1743609039215,-5040.23710951,0.00037996,2]
[357038020,1743609039224,-895.46,0.00038185,2]
[357038022,1743609039234,-272.44,0.00038443,2]
[357038024,1743609039245,-550.0,0.00039,2]
[357038026,1743609039254,-5040.23710951,0.00039697,2]
[357038028,1743609039264,-702.32690114,0.0004,30]
[357038030,1743609039273,-1002.22565943,0.00040179,2]
[357038032,1743609039283,-530.70257071,0.00040179,5]
[357038034,1743609039293,-584.0866829,0.00040192,5]
[357038036,1743609039303,-1000.0,0.00040258,2]
[357038038,1743609039318,-895.46,0.00040449,2]
[357038040,1743609039328,-600.0,0.00041,2]
[357038042,1743609039337,-171.0,0.00041,14]
[357038044,1743609039347,-2353.60576668,0.00041397,15]
[357038046,1743609039362,-2686.63134283,0.00041397,15]
[357038049,1743609039372,-557.5,0.00041778,2]
[357038051,1743609039381,-1973.0,0.000419,2]
[357038054,1743609039394,-2501.53,0.00042,120]
[357038056,1743609039405,-151.026113,0.00042016,3]
[357038058,1743609039415,-895.46,0.00042713,2]
[357038060,1743609039425,-650.0,0.00043,2]
[357038062,1743609039434,-5040.23710951,0.00043098,15]
[357038063,1743609039449,-171.0,0.00043151,90]
[357038065,1743609039459,-158.36,0.00043316,120]
[357038067,1743609039469,-163.12951868,0.00043514,12]
[357038068,1743609039479,-1000.0,0.00043917,2]
[357038069,1743609039488,-354.50925277,0.00044,10]
[357038070,1743609039498,-272.44,0.00044239,2]
[357038071,1743609039508,-151.3,0.00044521,2]
[357038072,1743609039517,-1973.99106933,0.000447,2]
[357038073,1743609039526,-5040.23710951,0.00044798,15]
[357038074,1743609039536,-158.88,0.00044844,2]
[357038075,1743609039547,-895.46,0.00044976,2]
[357038076,1743609039558,-700.0,0.00045,2]
[357038080,1743609039569,-151.0,0.00045,120]
[357038083,1743609039579,-151.0,0.00045,120]
[357038085,1743609039588,-500.0,0.00045,120]
[357038087,1743609039599,-160.88,0.00045,7]
[357038088,1743609039609,-1760.0,0.00045061,2]
[357038089,1743609039619,-5040.23710951,0.00046499,15]
[357038090,1743609039628,-1000.0,0.00046575,120]
[357038091,1743609039638,-1000.0,0.00046849,120]
[357038092,1743609039648,-750.0,0.00047,2]
[357038094,1743609039658,-1000.0,0.00047123,120]
[357038096,1743609039668,-895.46,0.0004724,2]
[357038098,1743609039677,-1000.0,0.00047397,120]
[357038100,1743609039687,-1000.0,0.00047671,120]
[357038102,1743609039701,-2000.0,0.00047678,4]
[357038104,1743609039711,-1000.0,0.00047945,120]
[357038106,1743609039720,-5040.23710951,0.00048199,15]
[357038108,1743609039731,-1051.55291442,0.00048219,120]
[357038110,1743609039740,-487.183,0.00048775,2]
[357038112,1743609039750,-1365.0,0.00048775,2]
[357038114,1743609039759,-325.404,0.00048775,2]
[357038115,1743609039769,-543.0,0.00048775,2]
[357038117,1743609039778,-909.0,0.00048775,2]
[357038119,1743609039787,-1434.0,0.00048775,2]
[357038121,1743609039797,-1773.24243306,0.0004879,120]
[357038123,1743609039807,-3878.69880768,0.000488,120]
[357038126,1743609039816,-417.717,0.00048855,84]
[357038127,1743609039826,-150.0,0.00048975,2]
[357038130,1743609039836,-151.0,0.00048975,2]
[357038131,1743609039845,-12579.27327223,0.00049,5]
[357038134,1743609039857,-1249.815,0.00049,5]
[357038136,1743609039873,-270.54437772,0.00049,5]
[357038142,1743609039939,-259.90204434,0.00049,5]
[357038143,1743609040042,-953.66821637,0.00049,5]
[357038144,1743609040071,-838.51701298,0.00049,5]
[357038145,1743609040083,-8543.65632691,0.00049,5]
[357038146,1743609040095,-275.58989998,0.00049,5]
[357038147,1743609040106,-935.78975859,0.00049,5]
[357038148,1743609040117,-435.30458131,0.00049,5]
[357038149,1743609040140,-40.7444987,0.00049,5]